lending/lending_fUSD_20260306
["ID","MTS","AMOUNT","RATE_DAILY","PERIOD"]
[407860716,1772837447205,-156.4697347,0.00046413,2]
[407860717,1772837447217,-11378.63,0.00046444,6]
[407860718,1772837447226,-157.0,0.00046458,7]
[407860719,1772837447236,-100000.0,0.000465,10]
[407860720,1772837447246,-100000.0,0.000465,9]
[407860721,1772837447257,-151.0,0.000465,2]
[407860722,1772837447267,-151.0,0.000465,2]
[407860723,1772837447276,-151.0,0.000465,2]
[407860724,1772837447287,-1000.0,0.00046549,14]
[407860725,1772837447298,-427.13,0.00046575,2]
[407860726,1772837447308,-1258.44,0.00046575,2]
[407860727,1772837447317,-1372.01,0.00046575,2]
[407860728,1772837447326,-659.22,0.00046575,2]
[407860729,1772837447336,-755.91,0.00046575,2]
[407860730,1772837447345,-305.059999,0.000466,20]
[407860731,1772837447354,-312.0500191,0.00046641,2]
[407860732,1772837447363,-183.04,0.0004666,120]
[407860733,1772837447373,-156.4697347,0.00046687,2]
[407860734,1772837447382,-509.0,0.0004671,31]
[407860735,1772837447391,-500.0,0.00046712,120]
[407860736,1772837447400,-160.14664636,0.00046744,2]
[407860737,1772837447409,-847.0,0.00046796,16]
[407860738,1772837447420,-2000.0,0.000468,2]
[407860739,1772837447429,-151.0,0.00046847,120]
[407860740,1772837447442,-427.13,0.00046849,2]
[407860741,1772837447452,-1258.44,0.00046849,2]
[407860742,1772837447462,-1372.01,0.00046849,2]
[407860743,1772837447471,-659.22,0.00046849,2]
[407860744,1772837447481,-755.91,0.00046849,2]
[407860745,1772837447490,-200.0,0.000469,17]
[407860746,1772837447499,-2692.29983561,0.00046924,2]
[407860747,1772837447508,-183.04,0.00046934,120]
[407860748,1772837447518,-3502.0,0.00046954,2]
[407860749,1772837447527,-619.0,0.00046954,2]
[407860750,1772837447536,-1341.0,0.00046954,2]
[407860751,1772837447546,-3746.0,0.00046954,2]
[407860752,1772837447557,-189.392,0.00046954,2]
[407860753,1772837447566,-156.4697347,0.00046961,2]
[407860754,1772837447576,-278.3076083,0.00046976,120]
[407860755,1772837447585,-100000.0,0.00047,11]
[407860756,1772837447596,-100000.0,0.00047,10]
[407860757,1772837447606,-100000.0,0.00047,9]
[407860758,1772837447615,-151.0,0.00047,14]
[407860759,1772837447624,-268.84519,0.00047,14]
[407860760,1772837447634,-1000.0,0.00047016,14]
[407860761,1772837447643,-232.49458612,0.00047029,4]
[407860762,1772837447653,-167.90787599,0.00047066,15]
[407860763,1772837447662,-5527.09654243,0.00047066,15]
[407860764,1772837447671,-3668.63973804,0.00047067,20]
[407860765,1772837447680,-400.0,0.0004707,3]
[407860766,1772837447689,-400.0,0.0004707,3]
[407860767,1772837447697,-2803.0,0.00047116,16]
[407860768,1772837447707,-427.13,0.00047123,2]
[407860769,1772837447716,-1258.44,0.00047123,2]
[407860770,1772837447725,-500.0,0.00047123,120]
[407860771,1772837447735,-1372.01,0.00047123,2]
[407860772,1772837447744,-659.22,0.00047123,2]
[407860773,1772837447753,-755.91,0.00047123,2]
[407860774,1772837447762,-230.42471314,0.00047137,26]
[407860775,1772837447772,-232.49458613,0.00047144,4]
[407860776,1772837447781,-151.0,0.0004715,2]
[407860777,1772837447790,-151.0,0.0004715,2]
[407860778,1772837447799,-151.0,0.0004715,2]
[407860779,1772837447808,-151.0,0.0004715,2]
[407860780,1772837447818,-151.0,0.0004715,2]
[407860781,1772837447827,-151.0,0.0004715,2]
[407860782,1772837447836,-151.0,0.0004715,2]
[407860783,1772837447845,-188.0,0.0004715,2]
[407860784,1772837447854,-379.8,0.00047166,30]
[407860785,1772837447863,-700.63241713,0.00047167,14]
[407860786,1772837447873,-11220.85295818,0.00047167,2]
[407860787,1772837447882,-399.22581757,0.00047167,2]
[407860788,1772837447891,-580.49722474,0.00047167,5]
[407860789,1772837447900,-206287.96033684,0.00047167,2]
[407860790,1772837447909,-124626.21348831,0.00047167,2]
[407860791,1772837447918,-10891.40665572,0.00047167,3]
[407860792,1772837447927,-1210.0,0.00047167,2]
[407860793,1772837447936,-6078.72262058,0.00047167,2]
[407860794,1772837447946,-717.7569761,0.00047167,2]
[407860795,1772837447955,-2042.97922509,0.00047167,5]
[407860796,1772837447964,-734.81775926,0.00047167,10]
[407860797,1772837447973,-25443.58026484,0.00047167,20]
[407860798,1772837447982,-355.63017725,0.00047167,2]
[407860799,1772837447991,-2860.75324812,0.00047167,2]
[407860800,1772837448000,-642.62892426,0.00047167,6]
[407860801,1772837448010,-420.63464611,0.00047167,7]
[407860802,1772837448026,-1011.55092831,0.00047167,15]
[407860803,1772837448037,-1030.11534109,0.00047167,20]
[407860804,1772837448046,-987.09103025,0.00047167,2]
[407860805,1772837448056,-1552.28476493,0.00047167,2]
[407860806,1772837448066,-1051.26680711,0.00047167,2]
[407860807,1772837448075,-5296.55201561,0.00047167,2]
[407860808,1772837448084,-501.00496767,0.00047167,2]
[407860809,1772837448096,-550.79483323,0.00047167,7]
[407860810,1772837448105,-425.8543948,0.00047167,7]
[407860811,1772837448114,-2507.10896209,0.00047167,2]
[407860812,1772837448123,-300.0,0.00047167,15]
[407860813,1772837448132,-2760.66770032,0.00047167,2]
[407860814,1772837448141,-220862.98917877,0.00047167,2]
[407860815,1772837448150,-154.47331388,0.00047167,2]
[407860816,1772837448160,-1108.4906474,0.00047167,7]
[407860817,1772837448168,-1712.51489133,0.00047167,2]
[407860818,1772837448178,-1006.37454036,0.00047167,5]
[407860819,1772837448187,-2433.3898525,0.00047167,14]
[407860820,1772837448196,-254.35311207,0.00047167,2]
[407860821,1772837448205,-500.0,0.00047167,2]
[407860822,1772837448215,-1287.73295862,0.00047167,2]
[407860823,1772837448224,-248.41264398,0.00047167,2]
[407860824,1772837448233,-1063.36985937,0.00047167,2]
[407860825,1772837448243,-600.0,0.00047167,5]
[407860826,1772837448252,-556.67864455,0.00047167,2]
[407860827,1772837448260,-500.0,0.00047167,5]
[407860828,1772837448270,-599.62483411,0.00047167,2]
[407860829,1772837448280,-9429.7184563,0.00047167,2]
[407860830,1772837448289,-1339.01506209,0.00047167,2]
[407860831,1772837448298,-1221.0,0.00047167,4]
[407860832,1772837448308,-1000.0,0.00047167,10]
[407860833,1772837448317,-3491.74307339,0.00047167,2]
[407860834,1772837448327,-10074.87469655,0.00047167,7]
[407860835,1772837448337,-2242.44469096,0.00047167,2]
[407860836,1772837448346,-23370.34716444,0.00047167,2]
[407860837,1772837448356,-763.13455731,0.00047167,2]
[407860838,1772837448365,-13101.31108079,0.00047167,2]
[407860839,1772837448374,-187.88397129,0.00047167,2]
[407860840,1772837448383,-12923.14683868,0.00047167,3]
[407860841,1772837448447,-259.51376165,0.00047167,3]
[407860842,1772837448459,-342.10734556,0.00047167,3]
[407860843,1772837448842,-1788.0,0.00031954,2]
[407860844,1772837448860,-4202.0,0.00031954,2]
[407860845,1772837448871,-5990.0,0.00034954,2]
[407860846,1772837448881,-150.0,0.0003643,2]
[407860847,1772837448890,-5990.0,0.00037954,2]
[407860848,1772837448900,-150.0,0.00038252,2]
[407860849,1772837448910,-150.0,0.00040165,2]
[407860850,1772837448920,-2129.831,0.00040954,2]
[407860851,1772837448929,-1737.57383354,0.00047167,3]
[407860852,1772837448938,-643.0,0.00047167,2]
[407860853,1772837448947,-2021.46732335,0.00047167,4]
[407860854,1772837448956,-990.77135422,0.00047167,2]
[407860855,1772837448965,-500.0,0.00047167,10]
[407860856,1772837448974,-19655.17692569,0.00047167,5]
[407860857,1772837448983,-584.96229583,0.00047167,2]
[407860858,1772837448992,-812220.49629011,0.00047167,2]
[407860859,1772837449001,-3308.62868543,0.00047167,2]
[407860860,1772837449011,-158.62039003,0.00047167,2]
[407860861,1772837449023,-179.01248413,0.00047167,2]
[407860862,1772837449033,-471.22541359,0.00047167,2]
[407860863,1772837449042,-7425.92664452,0.00047167,2]
[407860864,1772837449051,-550.0,0.00047167,2]
[407860865,1772837449061,-1074.59383178,0.00047167,7]
[407860866,1772837449070,-10928.47421604,0.00047167,2]
[407860867,1772837449079,-173650.96177033,0.00047167,2]
[407860868,1772837449088,-15252.00122857,0.00047167,2]
[407860869,1772837449099,-233.56919246,0.00047167,2]
[407860870,1772837449108,-177.25991312,0.00047167,2]
[407860871,1772837449117,-499.2692405,0.00047167,3]
[407860872,1772837449126,-6000.0,0.00047167,2]
[407860873,1772837449135,-382.91868085,0.00047167,2]
[407860874,1772837449144,-1304.50330108,0.00047167,2]
[407860875,1772837449153,-1054.16535206,0.00047167,2]
[407860876,1772837449162,-482.04148616,0.00047167,7]
[407860877,1772837449171,-154.56729496,0.00047167,2]
[407860878,1772837449180,-50209.39120315,0.00047167,2]
[407860879,1772837449190,-3195.79827497,0.00047167,2]
[407860880,1772837449199,-675.26526166,0.00047167,2]
[407860881,1772837449209,-235.54277745,0.00047167,14]
[407860882,1772837449217,-7952.04445344,0.00047167,2]
[407860883,1772837449226,-639.3444343,0.00047167,2]
[407860884,1772837449235,-225.44588606,0.00047167,5]
[407860885,1772837449244,-219.18137643,0.00047167,2]
[407860886,1772837449253,-234.22198495,0.00047167,15]
[407860887,1772837449262,-1088.68266518,0.00047167,2]
[407860888,1772837449271,-8300.0,0.00047167,7]
[407860889,1772837449280,-2500.0,0.00047167,2]
[407860890,1772837449290,-349.14615323,0.00047167,2]
[407860891,1772837449300,-1100.0,0.00047167,2]
[407860892,1772837449310,-3904.44863415,0.00047167,2]
[407860893,1772837449319,-930.95787768,0.00047167,2]
[407860894,1772837449329,-1341.7913066,0.00047167,2]
[407860895,1772837449339,-491.51655952,0.00047167,2]
[407860896,1772837449349,-617.72330416,0.00047167,2]
[407860897,1772837449359,-1620.07215408,0.00047167,2]
[407860898,1772837449370,-107258.322694,0.00047167,2]
[407860899,1772837449380,-1113.81812267,0.00047167,5]
[407860900,1772837449390,-559.62687352,0.00047167,2]
[407860901,1772837449400,-1032.66145908,0.00047167,2]
[407860902,1772837449409,-372.34542831,0.00047167,2]
[407860903,1772837449419,-2249.44785579,0.00047167,2]
[407860904,1772837449430,-15112.86377252,0.00047167,2]
[407860905,1772837449440,-12496.67530658,0.00047167,2]
[407860906,1772837449451,-4900.1224223,0.00047167,2]
[407860907,1772837449461,-1874.7960189,0.00047167,2]
[407860908,1772837449470,-6975.8934034,0.00047167,4]
[407860909,1772837449480,-28324.67917049,0.00047167,2]
[407860910,1772837449490,-225.78307654,0.00047167,7]
[407860911,1772837449500,-1141.40890853,0.00047167,2]
[407860912,1772837449509,-3077.47398312,0.00047167,5]
[407860913,1772837449519,-5340.10673752,0.00047167,4]
[407860914,1772837449528,-1213.16128584,0.00047167,2]
[407860915,1772837449538,-278.92881185,0.00047167,2]
[407860916,1772837449548,-627.01154439,0.00047167,7]
[407860917,1772837449558,-410.93294003,0.00047167,2]
[407860918,1772837449568,-20722.60816845,0.00047167,2]
[407860919,1772837449579,-10031.297714,0.00047167,7]
[407860920,1772837449589,-2489.86692317,0.00047167,2]
[407860921,1772837449599,-881.4000253,0.00047167,2]
[407860922,1772837449610,-207.09194766,0.00047167,2]
[407860923,1772837449619,-389.95510573,0.00047167,28]
[407860924,1772837449628,-1028.38621586,0.00047167,5]
[407860925,1772837449637,-288.7138403,0.00047167,2]
[407860926,1772837449646,-5809.87787896,0.00047167,2]
[407860927,1772837449656,-2218.21841308,0.00047167,2]
[407860928,1772837449665,-894.47193696,0.00047167,2]
[407860929,1772837449674,-470.23131886,0.00047167,2]
[407860930,1772837449683,-150.0,0.00047167,14]
[407860931,1772837449691,-150.0,0.00047167,2]
[407860932,1772837449701,-12907.24581533,0.00047167,2]
[407860933,1772837449709,-203.6657029,0.00047167,2]
[407860934,1772837449718,-758.25817851,0.00047167,2]
[407860935,1772837449727,-1373.72933208,0.00047167,2]
[407860936,1772837449736,-503.18642228,0.00047167,5]
[407860937,1772837449745,-200.73663039,0.00047167,2]
[407860938,1772837449754,-1524.99658753,0.00047167,2]
[407860939,1772837449763,-20000.0,0.00047167,2]
[407860940,1772837449773,-466.51355407,0.00047167,2]
[407860941,1772837449782,-406.98749088,0.00047167,2]
[407860942,1772837449790,-160.11220356,0.00047167,2]
[407860943,1772837449799,-32302.21802612,0.00047167,14]
[407860944,1772837449808,-400.25,0.00047167,20]
[407860945,1772837449818,-2009.31832766,0.00047167,2]
[407860946,1772837449827,-43287.77688354,0.00047167,15]
[407860947,1772837449837,-1923.5823148,0.00047167,20]
[407860948,1772837449846,-361.4719322,0.00047167,2]
[407860949,1772837449855,-5000.0,0.00047167,30]
[407860950,1772837449864,-150.0,0.00047167,120]
[407860951,1772837449873,-350.54,0.00047167,2]
[407860952,1772837449882,-400.0,0.0004717,3]
[407860953,1772837449891,-400.0,0.0004717,3]
[407860954,1772837449900,-183.04,0.00047208,120]
[407860955,1772837449910,-150.1,0.00047214,31]
[407860956,1772837449920,-150.1,0.00047214,31]
[407860957,1772837449928,-150.1,0.00047214,31]
[407860958,1772837449937,-150.1,0.00047214,31]
[407860959,1772837449946,-150.0,0.00047214,2]
[407860960,1772837449955,-150.0,0.00047214,2]
[407860961,1772837449964,-5729.98282192,0.00047214,2]
[407860962,1772837449973,-1567.29252276,0.00047214,2]
[407860963,1772837449982,-150.0,0.00047214,2]
[407860964,1772837449991,-19530.73900648,0.00047214,2]
[407860965,1772837450000,-3000.0,0.00047214,120]
[407860966,1772837450010,-6053.1979,0.00047216,2]
[407860967,1772837450022,-156.4697347,0.00047235,2]
[407860968,1772837450031,-151.0,0.00047237,14]
[407860969,1772837450040,-151.0,0.00047237,14]
[407860970,1772837450050,-151.0,0.00047237,14]
[407860971,1772837450059,-1000.0,0.00047326,14]
[407860972,1772837450068,-6053.1979,0.00047385,2]
[407860973,1772837450078,-427.24393686,0.00047397,2]
[407860974,1772837450088,-1258.58423451,0.00047397,2]
[407860975,1772837450098,-1372.22091294,0.00047397,2]
[407860976,1772837450107,-659.39394699,0.00047397,2]
[407860977,1772837450116,-756.05456752,0.00047397,2]
[407860978,1772837450126,-151.0,0.00047469,2]
[407860979,1772837450136,-151.0,0.00047469,2]
[407860980,1772837450145,-183.04,0.00047482,120]
[407860981,1772837450155,-373.00552135,0.00047534,120]
[407860982,1772837450165,-6053.1979,0.00047553,2]
[407860983,1772837450174,-400.0,0.00047583,7]
[407860984,1772837450183,-400.0,0.00047583,7]
[407860985,1772837450193,-400.0,0.00047583,7]
[407860986,1772837450202,-400.0,0.00047583,7]
[407860987,1772837450211,-400.0,0.00047583,7]
[407860988,1772837450220,-162.0,0.00047583,7]
[407860989,1772837450230,-200.0,0.000476,21]
[407860990,1772837450239,-151.0,0.000477,14]
[407860991,1772837450248,-6053.1979,0.00047722,2]
[407860992,1772837450257,-183.04,0.00047756,120]
[407860993,1772837450266,-1000.0,0.00047817,14]
[407860994,1772837450275,-6053.1979,0.0004789,2]
[407860995,1772837450285,-2368.14,0.00047896,120]
[407860996,1772837450295,-261.67,0.00048,14]
[407860997,1772837450304,-1000.0,0.00048011,14]
[407860998,1772837450315,-183.04,0.0004803,120]
[407860999,1772837450324,-6053.1979,0.00048059,2]
[407861000,1772837450333,-1000.0,0.00048191,14]
[407861001,1772837450342,-6053.1979,0.00048228,2]
[407861002,1772837450352,-150.0,0.00048286,30]
[407861003,1772837450362,-1319.99570548,0.00048286,30]
[407861004,1772837450372,-150.0,0.00048286,30]
[407861005,1772837450381,-4770.18475162,0.00048286,30]
[407861006,1772837450390,-150.0,0.00048286,30]
[407861007,1772837450399,-279.32313069,0.00048286,30]
[407861008,1772837450408,-150.0,0.00048299,7]
[407861009,1772837450417,-207.0,0.00048299,7]
[407861010,1772837450427,-183.04,0.00048303,120]
[407861011,1772837450436,-203.0,0.00048328,7]
[407861012,1772837450446,-150.0,0.00048391,14]
[407861013,1772837450456,-150.0,0.00048391,14]
[407861014,1772837450466,-277.0,0.00048391,14]
[407861015,1772837450475,-1000.0,0.00048394,14]
[407861016,1772837450485,-6053.1979,0.00048396,2]
[407861017,1772837450494,-150.0,0.00048405,7]
[407861018,1772837450504,-271.0,0.00048405,7]
[407861019,1772837450513,-2000.0,0.00048414,4]
[407861020,1772837450522,-10000.0,0.00048414,4]
[407861021,1772837450532,-6053.1979,0.00048565,2]
[407861022,1772837450541,-183.04,0.00048577,120]
[407861023,1772837450551,-200.0,0.000486,21]
[407861024,1772837450562,-1000.0,0.00048711,14]
[407861025,1772837450571,-6053.1979,0.00048734,2]
[407861026,1772837450581,-152.0,0.00048759,8]
[407861027,1772837450590,-20000.0,0.000488,120]
[407861028,1772837450599,-183.04,0.00048851,120]
[407861029,1772837450609,-6053.1979,0.00048902,2]
[407861030,1772837450618,-239.0,0.00048945,14]
[407861031,1772837450627,-6053.1979,0.00049071,2]
[407861032,1772837450636,-183.04,0.00049125,120]
[407861033,1772837450646,-152.8085332,0.0004922,14]
[407861034,1772837450656,-6053.1979,0.00049239,2]
[407861035,1772837450665,-150.0,0.00049297,14]
[407861036,1772837450674,-500.0,0.00049315,120]
[407861037,1772837450684,-500.0,0.00049315,120]
[407861038,1772837450692,-500.0,0.00049315,120]
[407861039,1772837450702,-500.0,0.00049315,120]
[407861040,1772837450711,-500.0,0.00049315,120]
[407861041,1772837450719,-500.0,0.00049315,120]
[407861042,1772837450728,-500.0,0.00049315,120]
[407861043,1772837450737,-500.0,0.00049315,120]
[407861044,1772837450747,-500.0,0.00049315,120]
[407861045,1772837450756,-575.69834849,0.00049315,120]
[407861046,1772837450766,-227.0,0.00049315,14]
[407861047,1772837450775,-1000.0,0.00049352,30]
[407861048,1772837450785,-2200.0,0.00049355,60]
[407861049,1772837450794,-700.0,0.00049355,60]
[407861050,1772837450807,-183.04,0.00049399,120]
[407861051,1772837450817,-6053.1979,0.00049408,2]
[407861052,1772837450827,-6053.1979,0.00049577,2]
[407861053,1772837450836,-200.0,0.000496,22]
[407861054,1772837450846,-1200.0,0.00049629,60]
[407861055,1772837450856,-183.04,0.00049673,120]
[407861056,1772837450867,-1044.42852228,0.00049866,30]
[407861057,1772837450877,-252.062915,0.0004988,2]
[407861058,1772837450887,-252.062915,0.0004988,2]
[407861059,1772837450896,-252.062915,0.0004988,2]
[407861060,1772837450906,-252.062915,0.0004988,2]
[407861061,1772837450915,-222.384131,0.0004988,15]
[407861062,1772837450924,-222.384131,0.0004988,15]
[407861063,1772837450934,-222.384131,0.0004988,15]
[407861064,1772837450943,-222.384131,0.0004988,15]
[407861065,1772837450952,-174.335232,0.0004988,120]
[407861066,1772837450961,-151.0,0.0004988,120]
[407861067,1772837450973,-177.699811,0.0004988,120]
[407861068,1772837450986,-151.0,0.0004988,2]
[407861069,1772837450999,-252.062915,0.000499,2]
[407861070,1772837451011,-252.062915,0.000499,2]
[407861071,1772837451025,-252.062915,0.000499,2]
[407861072,1772837451035,-252.062915,0.000499,2]
[407861073,1772837451046,-2200.0,0.00049903,60]
[407861074,1772837451058,-700.0,0.00049903,60]
[407861075,1772837451068,-183.04,0.00049947,120]
[407861076,1772837451078,-3502.0,0.00049954,2]
[407861077,1772837451087,-619.0,0.00049954,2]
[407861078,1772837451098,-166.929,0.00049954,2]
[407861079,1772837451108,-877.451,0.00049954,2]
[407861080,1772837451117,-812.69210901,0.0005,7]
[407861081,1772837451127,-252.062915,0.0005,2]
[407861082,1772837451136,-252.062915,0.0005,2]
[407861083,1772837451145,-252.062915,0.0005,2]
[407861084,1772837451154,-252.062915,0.0005,2]
[407861085,1772837451163,-252.062915,0.0005,2]
[407861086,1772837451172,-252.062915,0.0005,2]
[407861087,1772837451182,-252.062915,0.0005,2]
[407861088,1772837451191,-252.062915,0.0005,2]
[407861089,1772837451201,-222.384131,0.0005,15]
[407861090,1772837451210,-222.384131,0.0005,15]
[407861091,1772837451219,-222.384131,0.0005,15]
[407861092,1772837451229,-222.384131,0.0005,15]
[407861093,1772837451240,-222.384131,0.0005,15]
[407861094,1772837451250,-222.384131,0.0005,15]
[407861095,1772837451259,-222.384131,0.0005,15]
[407861096,1772837451268,-222.384131,0.0005,15]
[407861097,1772837451277,-312.0500191,0.0005,120]
[407861098,1772837451287,-1200.0,0.00050177,60]
[407861099,1772837451297,-183.04,0.00050221,120]
[407861100,1772837451307,-2200.0,0.00050451,60]
[407861101,1772837451316,-700.0,0.00050451,60]
[407861102,1772837451325,-330.757238,0.0005047,120]
[407861103,1772837451335,-1000.0,0.00050479,30]
[407861104,1772837451344,-183.04,0.00050495,120]
[407861105,1772837451361,-613.91533383,0.00050498,120]
[407861106,1772837451371,-2000.0,0.000505,2]
[407861107,1772837451381,-200.0,0.000506,22]
[407861108,1772837451390,-1200.0,0.00050725,60]
[407861109,1772837451399,-183.04,0.00050769,120]
[407861110,1772837451409,-150.0,0.000509,40]
[407861111,1772837451419,-400.0,0.0005097,7]
[407861112,1772837451429,-400.0,0.0005097,7]
[407861113,1772837451439,-350.0,0.00050982,14]
[407861114,1772837451449,-350.0,0.00050982,14]
[407861115,1772837451459,-350.0,0.00050982,14]
[407861116,1772837451469,-350.0,0.00050982,14]
[407861117,1772837451478,-492.0,0.00050982,14]
[407861118,1772837451487,-661.514476,0.00050985,120]
[407861119,1772837451496,-2200.0,0.00050999,60]
[407861120,1772837451506,-700.0,0.00050999,60]
[407861121,1772837451515,-252.062915,0.00051,2]
[407861122,1772837451525,-252.062915,0.00051,2]
[407861123,1772837451534,-252.062915,0.00051,2]
[407861124,1772837451543,-252.062923,0.00051,2]
[407861125,1772837451553,-222.384131,0.00051,15]
[407861126,1772837451562,-222.384131,0.00051,15]
[407861127,1772837451571,-222.384131,0.00051,15]
[407861128,1772837451581,-222.384131,0.00051,15]
[407861129,1772837451590,-222.384131,0.00051,15]
[407861130,1772837451599,-222.384131,0.00051,15]
[407861131,1772837451609,-222.384131,0.00051,15]
[407861132,1772837451618,-222.384124,0.00051,15]
[407861133,1772837451627,-154.536032,0.00051,120]
[407861134,1772837451636,-200.02649,0.00051,2]
[407861135,1772837451645,-183.04,0.00051043,120]
[407861136,1772837451655,-152.0,0.00051198,9]
[407861137,1772837451664,-400.0,0.0005127,7]
[407861138,1772837451674,-400.0,0.0005127,7]
[407861139,1772837451683,-158.05960082,0.00051272,30]
[407861140,1772837451692,-1200.0,0.00051273,60]
[407861141,1772837451701,-1077.37790028,0.00051273,60]
[407861142,1772837451710,-183.04,0.00051317,120]
[407861143,1772837451719,-637.78991472,0.000514,10]
[407861144,1772837451729,-264.21504644,0.000514,2]
[407861145,1772837451738,-242.41327579,0.00051465,48]
[407861146,1772837451747,-500.0,0.00051499,120]
[407861147,1772837451757,-500.0,0.00051499,120]
[407861148,1772837451767,-500.0,0.00051499,120]
[407861149,1772837451776,-500.0,0.00051499,120]
[407861150,1772837451787,-500.0,0.00051499,120]
[407861151,1772837451798,-500.0,0.00051499,120]
[407861152,1772837451808,-292.96653088,0.00051499,120]
[407861153,1772837451818,-500.0,0.00051499,120]
[407861154,1772837451826,-500.0,0.00051499,120]
[407861155,1772837451834,-500.0,0.00051499,120]
[407861156,1772837451842,-151.0,0.00051499,120]
[407861157,1772837451850,-500.0,0.00051499,120]
[407861158,1772837451861,-500.0,0.00051499,120]
[407861159,1772837451871,-151.0,0.00051499,120]
[407861160,1772837451880,-500.0,0.00051499,120]
[407861161,1772837451890,-500.0,0.00051499,120]
[407861162,1772837451901,-151.0,0.00051499,120]
[407861163,1772837451915,-500.0,0.00051499,120]
[407861164,1772837451925,-500.0,0.00051499,120]
[407861165,1772837451937,-500.0,0.00051499,120]
[407861166,1772837451947,-151.0,0.00051499,120]
[407861167,1772837451959,-500.0,0.00051499,120]
[407861168,1772837451969,-500.0,0.00051499,120]
[407861169,1772837451979,-151.0,0.00051499,120]
[407861170,1772837451988,-151.0,0.00051499,120]
[407861171,1772837451998,-500.0,0.00051499,120]
[407861172,1772837452009,-500.0,0.00051499,120]
[407861173,1772837452022,-151.0,0.00051499,120]
[407861174,1772837452034,-500.0,0.00051499,120]
[407861175,1772837452043,-151.0,0.00051499,120]
[407861176,1772837452053,-500.0,0.00051499,120]
[407861177,1772837452064,-151.0,0.00051499,120]
[407861178,1772837452075,-500.0,0.00051499,120]
[407861179,1772837452085,-500.0,0.00051499,120]
[407861180,1772837452094,-151.0,0.00051499,120]
[407861181,1772837452106,-500.0,0.00051499,120]
[407861182,1772837452116,-500.0,0.00051499,120]
[407861183,1772837452129,-151.0,0.00051499,120]
[407861184,1772837452139,-151.0,0.00051499,120]
[407861185,1772837452148,-151.0,0.00051499,120]
[407861186,1772837452158,-500.0,0.00051499,120]
[407861187,1772837452168,-151.0,0.00051499,120]
[407861188,1772837452178,-500.0,0.00051499,120]
[407861189,1772837452187,-151.0,0.00051499,120]
[407861190,1772837452196,-500.0,0.00051499,120]
[407861191,1772837452205,-151.0,0.00051499,120]
[407861192,1772837452215,-500.0,0.00051499,120]
[407861193,1772837452224,-151.0,0.00051499,120]
[407861194,1772837452232,-500.0,0.00051499,120]
[407861195,1772837452241,-151.0,0.00051499,120]
[407861196,1772837452250,-500.0,0.00051499,120]
[407861197,1772837452259,-151.0,0.00051499,120]
[407861198,1772837452268,-500.0,0.00051499,120]
[407861199,1772837452278,-151.0,0.00051499,120]
[407861200,1772837452288,-500.0,0.00051499,120]
[407861201,1772837452297,-500.0,0.00051499,120]
[407861202,1772837452306,-500.0,0.00051499,120]
[407861203,1772837452315,-500.0,0.00051499,120]
[407861204,1772837452324,-518.5,0.00051499,120]
[407861205,1772837452335,-500.0,0.00051499,120]
[407861206,1772837452347,-537.6845,0.00051499,120]
[407861207,1772837452358,-500.0,0.00051499,120]
[407861208,1772837452369,-557.5788265,0.00051499,120]
[407861209,1772837452379,-500.0,0.00051499,120]
[407861210,1772837452389,-578.20924308,0.00051499,120]
[407861211,1772837452398,-500.0,0.00051499,120]
[407861212,1772837452408,-599.60298507,0.00051499,120]
[407861213,1772837452418,-621.78829552,0.00051499,120]
[407861214,1772837452427,-644.79446246,0.00051499,120]
[407861215,1772837452437,-668.65185757,0.00051499,120]